[Event "*** Titled Tuesday Blitz"]
[Site "Chess.com"]
[Date "2018.12.04"]
[Round "1"]
[White "alishersuleymenov"]
[Black "FearNoEvil12"]
[Result "1-0"]
[WhiteElo "2482"]
[BlackElo "1958"]
[TimeControl "180+2"]
[EndTime "13:08:41 PST"]
[Termination "alishersuleymenov won by checkmate"]

1. d4 {[%clk 0:02:42.7]} 1... b5 {[%clk 0:02:59.6]} 2. e4 {[%clk 0:02:40.2]}
2... a6 {[%clk 0:02:59.6]} 3. Nf3 {[%clk 0:02:35]} 3... Bb7 {[%clk 0:03:00]} 4.
Bd3 {[%clk 0:02:35.5]} 4... e6 {[%clk 0:03:01.6]} 5. O-O {[%clk 0:02:35.1]} 5...
Nf6 {[%clk 0:03:03.1]} 6. Nbd2 {[%clk 0:02:35.5]} 6... d6 {[%clk 0:03:04.2]} 7.
b3 {[%clk 0:02:34.8]} 7... b4 {[%clk 0:03:04.1]} 8. a3 {[%clk 0:02:33.9]} 8...
a5 {[%clk 0:03:04.1]} 9. Bb2 {[%clk 0:02:35.3]} 9... Nbd7 {[%clk 0:03:03.7]} 10.
Re1 {[%clk 0:02:35.5]} 10... Rg8 {[%clk 0:03:02.2]} 11. e5 {[%clk 0:02:32.4]}
11... Nd5 {[%clk 0:03:02.1]} 12. Bxh7 {[%clk 0:02:31.1]} 12... Rh8 {[%clk
0:03:02.2]} 13. Be4 {[%clk 0:02:32.5]} 13... g5 {[%clk 0:03:03.2]} 14. h3 {[%clk
0:02:31.2]} 14... g4 {[%clk 0:02:49]} 15. hxg4 {[%clk 0:02:31.2]} 15... dxe5
{[%clk 0:02:50.1]} 16. dxe5 {[%clk 0:02:30.2]} 16... Nc5 {[%clk 0:02:48.9]} 17.
axb4 {[%clk 0:02:24.6]} 17... axb4 {[%clk 0:02:48.7]} 18. Rxa8 {[%clk
0:02:24.2]} 18... Qxa8 {[%clk 0:02:48.3]} 19. Qa1 {[%clk 0:02:23.9]} 19... Be7
{[%clk 0:02:38.6]} 20. Qxa8+ {[%clk 0:02:23]} 20... Bxa8 {[%clk 0:02:38.2]} 21.
Ra1 {[%clk 0:02:24.9]} 21... Kd7 {[%clk 0:02:38.5]} 22. Ra5 {[%clk 0:02:05.6]}
22... Nxe4 {[%clk 0:02:36.4]} 23. Nxe4 {[%clk 0:02:06.2]} 23... Nf4 {[%clk
0:02:36.1]} 24. Nc5+ {[%clk 0:01:58.7]} 24... Bxc5 {[%clk 0:02:35.1]} 25. Rxc5
{[%clk 0:02:00.6]} 25... Bxf3 {[%clk 0:02:30.6]} 26. gxf3 {[%clk 0:02:02.5]}
26... Rh3 {[%clk 0:02:30.7]} 27. Bc1 {[%clk 0:01:43.5]} 27... Rxf3 {[%clk
0:02:30.4]} 28. Bxf4 {[%clk 0:01:44]} 28... Rxf4 {[%clk 0:02:31.2]} 29. Rc4
{[%clk 0:01:45.9]} 29... Rxc4 {[%clk 0:02:26.6]} 30. bxc4 {[%clk 0:01:47.8]}
30... Kc6 {[%clk 0:02:27.4]} 31. f4 {[%clk 0:01:49.3]} 31... Kc5 {[%clk
0:02:28.6]} 32. f5 {[%clk 0:01:50.5]} 32... Kd4 {[%clk 0:01:56.6]} 33. fxe6
{[%clk 0:01:31.2]} 33... fxe6 {[%clk 0:01:56.5]} 34. Kf2 {[%clk 0:01:32.8]}
34... Kxe5 {[%clk 0:01:57.4]} 35. Ke3 {[%clk 0:01:33.8]} 35... c5 {[%clk
0:01:57.4]} 36. Kf3 {[%clk 0:01:28.9]} 36... Kd4 {[%clk 0:01:12.1]} 37. g5
{[%clk 0:01:23.9]} 37... Kc3 {[%clk 0:00:47.8]} 38. g6 {[%clk 0:00:54.8]} 38...
Kxc2 {[%clk 0:00:48.9]} 39. g7 {[%clk 0:00:55.5]} 39... b3 {[%clk 0:00:50.1]}
40. g8=Q {[%clk 0:00:56.5]} 40... b2 {[%clk 0:00:51.2]} 41. Qg6+ {[%clk
0:00:53.6]} 41... Kc1 {[%clk 0:00:50.7]} 42. Qg1+ {[%clk 0:00:45.1]} 42... Kc2
{[%clk 0:00:50.3]} 43. Qf2+ {[%clk 0:00:38.3]} 43... Kc3 {[%clk 0:00:47.8]} 44.
Qf1 {[%clk 0:00:35.5]} 44... Kc2 {[%clk 0:00:39.8]} 45. Qe2+ {[%clk 0:00:36.5]}
45... Kc3 {[%clk 0:00:40.8]} 46. Qd1 {[%clk 0:00:36.9]} 46... Kxc4 {[%clk
0:00:40.7]} 47. Qc2+ {[%clk 0:00:38.1]} 47... Kd4 {[%clk 0:00:41]} 48. Qxb2+
{[%clk 0:00:40]} 48... Kd5 {[%clk 0:00:41.3]} 49. Qc2 {[%clk 0:00:41]} 49... e5
{[%clk 0:00:41.2]} 50. Qc3 {[%clk 0:00:41.9]} 50... c4 {[%clk 0:00:39.2]} 51.
Ke3 {[%clk 0:00:43.8]} 51... Kc5 {[%clk 0:00:39.6]} 52. Qxe5+ {[%clk 0:00:44]}
52... Kb4 {[%clk 0:00:41.1]} 53. Kd2 {[%clk 0:00:45.9]} 53... Kb3 {[%clk
0:00:42.1]} 54. Qc3+ {[%clk 0:00:46.7]} 54... Ka2 {[%clk 0:00:40.8]} 55. Qb4
{[%clk 0:00:47.7]} 55... c3+ {[%clk 0:00:40.7]} 56. Kxc3 {[%clk 0:00:47.2]}
56... Ka1 {[%clk 0:00:41.7]} 57. Kc2 {[%clk 0:00:48.6]} 57... Ka2 {[%clk
0:00:41.8]} 58. Qb2# {[%clk 0:00:50.5]} 1-0

[Event "*** Titled Tuesday Blitz"]
[Site "Chess.com"]
[Date "2018.12.04"]
[Round "1"]
[White "1e41-0"]
[Black "silverback96"]
[Result "1/2-1/2"]
[WhiteElo "2495"]
[BlackElo "2114"]
[TimeControl "180+2"]
[EndTime "13:08:42 PST"]
[Termination "Game drawn by repetition"]

1. e4 {[%clk 0:03:01.9]} 1... e6 {[%clk 0:02:54.6]} 2. d3 {[%clk 0:02:59.7]}
2... d5 {[%clk 0:02:55.5]} 3. Qe2 {[%clk 0:02:59.2]} 3... Nf6 {[%clk 0:02:51.6]}
4. g3 {[%clk 0:02:57.7]} 4... Nc6 {[%clk 0:02:48.2]} 5. Nf3 {[%clk 0:02:57.1]}
5... dxe4 {[%clk 0:02:48.7]} 6. dxe4 {[%clk 0:02:59]} 6... e5 {[%clk 0:02:48.7]}
7. Bg2 {[%clk 0:02:57.7]} 7... Bc5 {[%clk 0:02:49.7]} 8. c3 {[%clk 0:02:57.4]}
8... O-O {[%clk 0:02:50.5]} 9. O-O {[%clk 0:02:58.4]} 9... a5 {[%clk 0:02:51.6]}
10. a4 {[%clk 0:02:56.3]} 10... b6 {[%clk 0:02:52.5]} 11. Rd1 {[%clk 0:02:52]}
11... Ba6 {[%clk 0:02:50.7]} 12. Qe1 {[%clk 0:02:47.5]} 12... Qe7 {[%clk
0:02:51]} 13. Be3 {[%clk 0:02:44.4]} 13... Rad8 {[%clk 0:02:27.1]} 14. Nbd2
{[%clk 0:02:28.7]} 14... Bxe3 {[%clk 0:01:49.3]} 15. Qxe3 {[%clk 0:02:30.6]}
15... Rd3 {[%clk 0:01:50.5]} 16. Qe1 {[%clk 0:02:29.7]} 16... Rfd8 {[%clk
0:01:51.8]} 17. Bf1 {[%clk 0:02:28.2]} 17... Qe6 {[%clk 0:01:37.8]} 18. Bxd3
{[%clk 0:02:18.8]} 18... Bxd3 {[%clk 0:01:39.7]} 19. Nh4 {[%clk 0:02:10.3]}
19... Nd7 {[%clk 0:01:04.5]} 20. Nf5 {[%clk 0:01:55.4]} 20... Nc5 {[%clk
0:01:02.5]} 21. f3 {[%clk 0:01:49.8]} 21... Bc2 {[%clk 0:00:37.5]} 22. Rdc1
{[%clk 0:01:29]} 22... Nd3 {[%clk 0:00:38.1]} 23. Qe3 {[%clk 0:01:29]} 23...
Nxc1 {[%clk 0:00:39.3]} 24. Rxc1 {[%clk 0:01:29.6]} 24... Bxa4 {[%clk
0:00:39.8]} 25. b4 {[%clk 0:01:15.1]} 25... axb4 {[%clk 0:00:21.5]} 26. cxb4
{[%clk 0:01:16.5]} 26... Bb5 {[%clk 0:00:22.8]} 27. Qg5 {[%clk 0:01:14.4]} 27...
Qf6 {[%clk 0:00:23.3]} 28. Qe3 {[%clk 0:00:56.3]} 28... Rd3 {[%clk 0:00:24.1]}
29. Qf2 {[%clk 0:00:57.5]} 29... g6 {[%clk 0:00:22.6]} 30. Nh6+ {[%clk
0:00:58.8]} 30... Kg7 {[%clk 0:00:23]} 31. Ng4 {[%clk 0:01:00.4]} 31... Qd6
{[%clk 0:00:23.1]} 32. Nf1 {[%clk 0:00:59.7]} 32... Nd4 {[%clk 0:00:21.1]} 33.
Nge3 {[%clk 0:00:58.4]} 33... Nb3 {[%clk 0:00:19.3]} 34. Re1 {[%clk 0:00:55.6]}
34... Nd4 {[%clk 0:00:20.5]} 35. h4 {[%clk 0:00:54.8]} 35... Rb3 {[%clk
0:00:21.6]} 36. h5 {[%clk 0:00:53.2]} 36... Qxb4 {[%clk 0:00:22.5]} 37. hxg6
{[%clk 0:00:41.4]} 37... fxg6 {[%clk 0:00:24.4]} 38. g4 {[%clk 0:00:31.5]} 38...
Rb2 {[%clk 0:00:25.1]} 39. Qg3 {[%clk 0:00:32.9]} 39... Nxf3+ {[%clk 0:00:25.9]}
40. Qxf3 {[%clk 0:00:32.8]} 40... Qxe1 {[%clk 0:00:27.4]} 41. g5 {[%clk
0:00:30.7]} 41... Bxf1 {[%clk 0:00:24.1]} 42. Qf6+ {[%clk 0:00:30.8]} 42... Kg8
{[%clk 0:00:25.6]} 43. Qd8+ {[%clk 0:00:26.7]} 43... Kf7 {[%clk 0:00:25.6]} 44.
Qd7+ {[%clk 0:00:28]} 44... Kf8 {[%clk 0:00:25.9]} 45. Qd8+ {[%clk 0:00:28.9]}
45... Kf7 {[%clk 0:00:26.8]} 46. Qd7+ {[%clk 0:00:29.8]} 46... Kf8 {[%clk
0:00:26.9]} 47. Qd8+ {[%clk 0:00:30.8]} 47... Kf7 {[%clk 0:00:28.1]} 1/2-1/2

[Event "*** Titled Tuesday Blitz"]
[Site "Chess.com"]
[Date "2018.12.04"]
[Round "1"]
[White "dawtonlms"]
[Black "nubair1198"]
[Result "0-1"]
[WhiteElo "2288"]
[BlackElo "2625"]
[TimeControl "180+2"]
[EndTime "13:08:44 PST"]
[Termination "nubair1198 won by resignation"]

1. e4 {[%clk 0:03:01.9]} 1... c6 {[%clk 0:03:00.7]} 2. d4 {[%clk 0:03:02.5]}
2... d5 {[%clk 0:03:02.6]} 3. exd5 {[%clk 0:03:03.1]} 3... cxd5 {[%clk
0:03:04.5]} 4. c4 {[%clk 0:03:04.6]} 4... Nf6 {[%clk 0:03:04.7]} 5. Nc3 {[%clk
0:03:05.8]} 5... e6 {[%clk 0:03:06.1]} 6. Nf3 {[%clk 0:03:06]} 6... Bb4 {[%clk
0:03:07.2]} 7. cxd5 {[%clk 0:03:06.3]} 7... Nxd5 {[%clk 0:03:09.1]} 8. Bd2
{[%clk 0:03:07.5]} 8... Nc6 {[%clk 0:03:10.5]} 9. Bd3 {[%clk 0:03:08]} 9... O-O
{[%clk 0:03:10.7]} 10. O-O {[%clk 0:03:08.7]} 10... Be7 {[%clk 0:03:11.8]} 11.
Qe2 {[%clk 0:03:08.7]} 11... Nf6 {[%clk 0:03:12.3]} 12. Rad1 {[%clk 0:02:59.3]}
12... Nxd4 {[%clk 0:02:13.3]} 13. Nxd4 {[%clk 0:02:58.7]} 13... Qxd4 {[%clk
0:02:15.2]} 14. Be3 {[%clk 0:02:37.7]} 14... Qg4 {[%clk 0:02:08]} 15. f3 {[%clk
0:02:37]} 15... Qb4 {[%clk 0:02:08.4]} 16. a3 {[%clk 0:02:22.1]} 16... Qa5
{[%clk 0:01:56.4]} 17. Nb5 {[%clk 0:02:13.1]} 17... Bd7 {[%clk 0:01:49.1]} 18.
b4 {[%clk 0:02:12.3]} 18... Qa4 {[%clk 0:01:40.4]} 19. Bc1 {[%clk 0:01:38.1]}
19... a5 {[%clk 0:01:40.9]} 20. bxa5 {[%clk 0:01:01.3]} 20... Rxa5 {[%clk
0:01:21]} 21. Nc3 {[%clk 0:00:44]} 21... Qd4+ {[%clk 0:01:21.5]} 22. Qe3 {[%clk
0:00:38.5]} 22... Qxe3+ {[%clk 0:01:22.3]} 23. Bxe3 {[%clk 0:00:40.4]} 23...
Rxa3 {[%clk 0:01:23.9]} 24. Bd4 {[%clk 0:00:40.5]} 24... Rc8 {[%clk 0:01:23.7]}
25. Nb1 {[%clk 0:00:34.1]} 25... Rb3 {[%clk 0:01:17.4]} 26. Bxf6 {[%clk
0:00:34.4]} 26... Bxf6 {[%clk 0:01:15.7]} 27. Bxh7+ {[%clk 0:00:35.4]} 27...
Kxh7 {[%clk 0:01:17.6]} 28. Rxd7 {[%clk 0:00:36.1]} 28... Kg6 {[%clk 0:01:19.1]}
29. Nd2 {[%clk 0:00:34.4]} 29... Rb2 {[%clk 0:01:19.4]} 30. Ne4 {[%clk
0:00:21.5]} 30... Bd8 {[%clk 0:01:05.2]} 31. Rfd1 {[%clk 0:00:15]} 31... Bb6+
{[%clk 0:01:03.8]} 32. Kh1 {[%clk 0:00:15.7]} 32... Be3 {[%clk 0:01:01.1]} 33.
Nd6 {[%clk 0:00:11.5]} 33... Rcc2 {[%clk 0:00:59.5]} 34. Rxb7 {[%clk 0:00:04.5]}
34... Rxg2 {[%clk 0:00:57.7]} 35. Rxb2 {[%clk 0:00:05]} 35... Rxb2 {[%clk
0:00:59.6]} 36. Ne4 {[%clk 0:00:06.1]} 36... Bf4 {[%clk 0:00:58.5]} 37. Ng3
{[%clk 0:00:07.2]} 37... Rf2 {[%clk 0:00:58.9]} 38. Rd3 {[%clk 0:00:07.2]} 38...
f5 {[%clk 0:00:59.5]} 39. Kg1 {[%clk 0:00:08.4]} 39... Ra2 {[%clk 0:01:00.9]}
40. Nf1 {[%clk 0:00:09.6]} 40... Kf6 {[%clk 0:01:01.5]} 41. Rb3 {[%clk
0:00:10.7]} 41... Ke5 {[%clk 0:01:01.7]} 42. Kh1 {[%clk 0:00:12]} 42... Kf6
{[%clk 0:01:00.8]} 43. Kg1 {[%clk 0:00:13.3]} 43... Kg5 {[%clk 0:01:00.9]} 44.
Kh1 {[%clk 0:00:14.6]} 44... Be5 {[%clk 0:01:02.2]} 45. Kg1 {[%clk 0:00:15.6]}
45... Kh4 {[%clk 0:01:03.7]} 46. Rb5 {[%clk 0:00:09.7]} 46... Bd4+ {[%clk
0:01:02.2]} 47. Kh1 {[%clk 0:00:11.1]} 47... Rf2 {[%clk 0:01:02.4]} 48. Ng3
{[%clk 0:00:10.4]} 48... Rxf3 {[%clk 0:01:03.9]} 49. Rb4 {[%clk 0:00:11.5]}
49... e5 {[%clk 0:01:04.5]} 50. Kg2 {[%clk 0:00:12.6]} 50... Rf2+ {[%clk
0:01:05.4]} 51. Kh1 {[%clk 0:00:14]} 51... g6 {[%clk 0:01:05.9]} 52. Ra4 {[%clk
0:00:14.5]} 52... Kh3 {[%clk 0:01:07.3]} 0-1

[Event "*** Titled Tuesday Blitz"]
[Site "Chess.com"]
[Date "2018.12.04"]
[Round "1"]
[White "Morshynska"]
[Black "StanislavNovikov"]
[Result "0-1"]
[WhiteElo "2068"]
[BlackElo "2499"]
[TimeControl "180+2"]
[EndTime "13:08:48 PST"]
[Termination "StanislavNovikov won by resignation"]

1. d4 {[%clk 0:03:00.3]} 1... g6 {[%clk 0:03:00.2]} 2. c4 {[%clk 0:02:56.3]}
2... Bg7 {[%clk 0:03:01.2]} 3. Nc3 {[%clk 0:02:56.4]} 3... d6 {[%clk 0:03:01.4]}
4. Nf3 {[%clk 0:02:55.8]} 4... Bg4 {[%clk 0:03:00]} 5. h3 {[%clk 0:02:45.8]}
5... Bxf3 {[%clk 0:02:59.4]} 6. exf3 {[%clk 0:02:47.7]} 6... c6 {[%clk
0:02:52.1]} 7. Be3 {[%clk 0:02:46.5]} 7... Nf6 {[%clk 0:02:51.1]} 8. Qd2 {[%clk
0:02:46.4]} 8... d5 {[%clk 0:02:50.2]} 9. c5 {[%clk 0:02:40.6]} 9... Nbd7 {[%clk
0:02:49]} 10. f4 {[%clk 0:02:32.5]} 10... b6 {[%clk 0:02:41.5]} 11. cxb6 {[%clk
0:02:25.7]} 11... axb6 {[%clk 0:02:40.6]} 12. b4 {[%clk 0:02:20.4]} 12... b5
{[%clk 0:02:31.7]} 13. Bd3 {[%clk 0:01:29.7]} 13... Nb6 {[%clk 0:02:26.3]} 14.
O-O {[%clk 0:01:29.4]} 14... e6 {[%clk 0:02:19.5]} 15. Qc2 {[%clk 0:01:25.4]}
15... O-O {[%clk 0:02:17.7]} 16. a4 {[%clk 0:01:22.9]} 16... bxa4 {[%clk
0:02:07.2]} 17. Nxa4 {[%clk 0:01:24.8]} 17... Nxa4 {[%clk 0:01:47.5]} 18. Rxa4
{[%clk 0:01:26.7]} 18... Qb6 {[%clk 0:01:42]} 19. Rfa1 {[%clk 0:01:14.2]} 19...
Rxa4 {[%clk 0:01:42.5]} 20. Rxa4 {[%clk 0:01:03]} 20... Nd7 {[%clk 0:01:30]} 21.
Qc3 {[%clk 0:00:43.2]} 21... Rb8 {[%clk 0:01:21.4]} 22. g4 {[%clk 0:00:25]}
22... Bf8 {[%clk 0:01:06.4]} 23. Bd2 {[%clk 0:00:24.7]} 23... Qb7 {[%clk
0:00:56.7]} 24. Kg2 {[%clk 0:00:21.3]} 24... Ra8 {[%clk 0:00:49.8]} 25. Qa3
{[%clk 0:00:19.7]} 25... Rxa4 {[%clk 0:00:47.6]} 26. Qxa4 {[%clk 0:00:21.6]}
26... Nb6 {[%clk 0:00:40.5]} 27. Qa5 {[%clk 0:00:18.3]} 27... Nc4 {[%clk
0:00:39.6]} 28. Bxc4 {[%clk 0:00:17.7]} 28... dxc4 {[%clk 0:00:39.5]} 29. Kg3
{[%clk 0:00:18.3]} 29... Qb5 {[%clk 0:00:29.8]} 30. Qxb5 {[%clk 0:00:18]} 30...
cxb5 {[%clk 0:00:29]} 31. Kf3 {[%clk 0:00:17.7]} 31... Bg7 {[%clk 0:00:23.8]}
32. Ke4 {[%clk 0:00:18.7]} 32... f5+ {[%clk 0:00:24.1]} 33. Ke3 {[%clk
0:00:17.3]} 33... Kf7 {[%clk 0:00:23.4]} 34. g5 {[%clk 0:00:17.9]} 34... Ke7
{[%clk 0:00:21.2]} 35. Bc3 {[%clk 0:00:16.1]} 35... Kd6 {[%clk 0:00:22.3]} 36.
f3 {[%clk 0:00:14.9]} 36... Kd5 {[%clk 0:00:23.2]} 37. h4 {[%clk 0:00:15.9]}
37... Bf8 {[%clk 0:00:18.2]} 38. Ke2 {[%clk 0:00:16.5]} 38... Bd6 {[%clk
0:00:17.9]} 39. Ke3 {[%clk 0:00:15.1]} 39... Bc7 {[%clk 0:00:18.2]} 40. h5
{[%clk 0:00:15.8]} 40... gxh5 {[%clk 0:00:18.2]} 41. Be1 {[%clk 0:00:16]} 41...
Bb6 {[%clk 0:00:17.6]} 42. Bc3 {[%clk 0:00:16.5]} 42... h4 {[%clk 0:00:18.1]}
43. Kf2 {[%clk 0:00:15.9]} 43... Bxd4+ {[%clk 0:00:17.7]} 44. Bxd4 {[%clk
0:00:16.3]} 44... Kxd4 {[%clk 0:00:18.7]} 0-1

[Event "*** Titled Tuesday Blitz"]
[Site "Chess.com"]
[Date "2018.12.04"]
[Round "1"]
[White "AquivaRubinstein"]
[Black "Dr-Bassem"]
[Result "0-1"]
[WhiteElo "2403"]
[BlackElo "2756"]
[TimeControl "180+2"]
[EndTime "13:08:52 PST"]
[Termination "Dr-Bassem won by resignation"]

1. e4 {[%clk 0:03:00.9]} 1... e5 {[%clk 0:03:00.5]} 2. Nf3 {[%clk 0:03:00.7]}
2... Nc6 {[%clk 0:03:01.7]} 3. Bb5 {[%clk 0:02:56.8]} 3... a6 {[%clk 0:03:02.4]}
4. Ba4 {[%clk 0:02:57.3]} 4... Nf6 {[%clk 0:03:03.7]} 5. O-O {[%clk 0:02:58]}
5... Be7 {[%clk 0:03:04.9]} 6. Re1 {[%clk 0:02:57.8]} 6... b5 {[%clk 0:03:05.9]}
7. Bb3 {[%clk 0:02:58.9]} 7... d6 {[%clk 0:03:07.6]} 8. c3 {[%clk 0:03:00]} 8...
O-O {[%clk 0:03:06.2]} 9. d4 {[%clk 0:03:00.1]} 9... Bg4 {[%clk 0:03:05.5]} 10.
Be3 {[%clk 0:03:00.9]} 10... exd4 {[%clk 0:03:06.9]} 11. cxd4 {[%clk 0:03:01.4]}
11... Na5 {[%clk 0:03:08.4]} 12. Bc2 {[%clk 0:03:01.3]} 12... c5 {[%clk
0:03:08.9]} 13. d5 {[%clk 0:02:56.7]} 13... Nc4 {[%clk 0:02:57.8]} 14. Bc1
{[%clk 0:02:55.5]} 14... Nd7 {[%clk 0:02:59.1]} 15. h3 {[%clk 0:02:39.8]} 15...
Bh5 {[%clk 0:02:57.7]} 16. g4 {[%clk 0:02:24.8]} 16... Bg6 {[%clk 0:02:58.6]}
17. Nbd2 {[%clk 0:02:09.8]} 17... Ndb6 {[%clk 0:02:40.8]} 18. b3 {[%clk
0:02:03.8]} 18... Bf6 {[%clk 0:02:37.8]} 19. Rb1 {[%clk 0:02:02]} 19... Nxd2
{[%clk 0:02:33.6]} 20. Bxd2 {[%clk 0:01:53.1]} 20... b4 {[%clk 0:02:34.6]} 21.
Bf4 {[%clk 0:01:33.2]} 21... Re8 {[%clk 0:02:31.7]} 22. Nd2 {[%clk 0:01:30.3]}
22... Bc3 {[%clk 0:02:30.5]} 23. Re2 {[%clk 0:01:22]} 23... Qf6 {[%clk
0:02:14.9]} 24. Bg3 {[%clk 0:01:17.1]} 24... Nxd5 {[%clk 0:02:12.8]} 25. Nc4
{[%clk 0:01:10.5]} 25... Nf4 {[%clk 0:02:10.3]} 26. Bxf4 {[%clk 0:01:00.7]}
26... Qxf4 {[%clk 0:02:12.2]} 27. Qxd6 {[%clk 0:00:59.8]} 27... Qxd6 {[%clk
0:01:58.7]} 28. Nxd6 {[%clk 0:01:01]} 28... Red8 {[%clk 0:01:59.5]} 29. Nf5
{[%clk 0:01:01.4]} 29... Kf8 {[%clk 0:01:51.4]} 30. Re3 {[%clk 0:00:50.7]} 30...
Rd2 {[%clk 0:01:49.2]} 31. Bd3 {[%clk 0:00:38.2]} 31... Bxf5 {[%clk 0:01:48.1]}
32. exf5 {[%clk 0:00:36.3]} 32... Bd4 {[%clk 0:01:48.7]} 33. Rf3 {[%clk
0:00:37.4]} 33... Rxa2 {[%clk 0:01:39.9]} 34. Bc4 {[%clk 0:00:38.6]} 34... Re8
{[%clk 0:01:36.8]} 35. Kf1 {[%clk 0:00:38.4]} 35... a5 {[%clk 0:01:37.2]} 36.
Re1 {[%clk 0:00:37.4]} 36... Rxe1+ {[%clk 0:01:32.4]} 37. Kxe1 {[%clk 0:00:39]}
37... f6 {[%clk 0:01:30.5]} 38. h4 {[%clk 0:00:37.6]} 38... h6 {[%clk
0:01:29.8]} 39. Rf4 {[%clk 0:00:30]} 39... Ke7 {[%clk 0:01:21]} 40. Re4+ {[%clk
0:00:29.9]} 40... Kd7 {[%clk 0:01:21.7]} 41. Re2 {[%clk 0:00:31.1]} 41... Ra1+
{[%clk 0:01:18.6]} 42. Kd2 {[%clk 0:00:32.4]} 42... Be5 {[%clk 0:01:09.7]} 43.
Kd3 {[%clk 0:00:27]} 43... Kc6 {[%clk 0:01:01.3]} 44. Ke4 {[%clk 0:00:25.4]}
44... a4 {[%clk 0:00:59.2]} 45. bxa4 {[%clk 0:00:22.9]} 45... Rxa4 {[%clk
0:01:00.7]} 46. Bb3 {[%clk 0:00:16.7]} 46... Ra3 {[%clk 0:00:58.4]} 47. Bf7
{[%clk 0:00:18.3]} 47... b3 {[%clk 0:00:55.8]} 48. Be8+ {[%clk 0:00:12.4]} 48...
Kc7 {[%clk 0:00:55]} 49. Rd2 {[%clk 0:00:12.3]} 49... b2 {[%clk 0:00:54.3]} 50.
Rd7+ {[%clk 0:00:12.9]} 50... Kc8 {[%clk 0:00:55]} 51. Rd1 {[%clk 0:00:10.7]}
51... Ra1 {[%clk 0:00:55.5]} 0-1

[Event "*** Titled Tuesday Blitz"]
[Site "Chess.com"]
[Date "2018.12.04"]
[Round "1"]
[White "Rakhmanov_Aleksandr"]
[Black "Evgeny81"]
[Result "0-1"]
[WhiteElo "2787"]
[BlackElo "2592"]
[TimeControl "180+2"]
[EndTime "13:08:53 PST"]
[Termination "Evgeny81 won on time"]

1. c4 {[%clk 0:01:45.8]} 1... Nf6 {[%clk 0:02:57.9]} 2. Nc3 {[%clk 0:01:44.1]}
2... c5 {[%clk 0:02:58.8]} 3. Nf3 {[%clk 0:01:44.3]} 3... e6 {[%clk 0:02:58.4]}
4. e4 {[%clk 0:01:44.6]} 4... d6 {[%clk 0:02:56.3]} 5. Be2 {[%clk 0:01:44.8]}
5... Nc6 {[%clk 0:02:56.9]} 6. O-O {[%clk 0:01:45.4]} 6... Be7 {[%clk
0:02:57.4]} 7. d4 {[%clk 0:01:46.6]} 7... cxd4 {[%clk 0:02:58.2]} 8. Nxd4 {[%clk
0:01:48.5]} 8... O-O {[%clk 0:02:59.1]} 9. Be3 {[%clk 0:01:49.8]} 9... Qc7
{[%clk 0:02:56]} 10. Rc1 {[%clk 0:01:49.8]} 10... Ne5 {[%clk 0:02:56.5]} 11. b3
{[%clk 0:01:36.3]} 11... a6 {[%clk 0:02:56.9]} 12. f4 {[%clk 0:01:36.1]} 12...
Ned7 {[%clk 0:02:56.1]} 13. g4 {[%clk 0:01:33.5]} 13... b6 {[%clk 0:02:52.6]}
14. g5 {[%clk 0:01:31.4]} 14... Ne8 {[%clk 0:02:52.4]} 15. h4 {[%clk 0:01:19.8]}
15... Bb7 {[%clk 0:02:47.7]} 16. Bf3 {[%clk 0:01:16.3]} 16... Rc8 {[%clk
0:02:31]} 17. Qd2 {[%clk 0:01:13.4]} 17... Qb8 {[%clk 0:02:26.6]} 18. Bg2 {[%clk
0:01:13.1]} 18... Bd8 {[%clk 0:02:23.7]} 19. h5 {[%clk 0:01:13.9]} 19... g6
{[%clk 0:02:09.4]} 20. hxg6 {[%clk 0:01:07.5]} 20... hxg6 {[%clk 0:02:09.6]} 21.
Kf2 {[%clk 0:00:56.2]} 21... e5 {[%clk 0:02:10.4]} 22. Nde2 {[%clk 0:00:45.6]}
22... exf4 {[%clk 0:02:06.2]} 23. Bxf4 {[%clk 0:00:45.1]} 23... Ne5 {[%clk
0:02:05.2]} 24. Kg1 {[%clk 0:00:45.4]} 24... Ng7 {[%clk 0:02:02.6]} 25. Nd5
{[%clk 0:00:44.3]} 25... Bxd5 {[%clk 0:01:59.5]} 26. exd5 {[%clk 0:00:45]} 26...
b5 {[%clk 0:01:52.2]} 27. Bh3 {[%clk 0:00:40.1]} 27... Bb6+ {[%clk 0:01:45.3]}
28. Kg2 {[%clk 0:00:41.3]} 28... Rce8 {[%clk 0:01:46.8]} 29. Ng3 {[%clk
0:00:41.7]} 29... bxc4 {[%clk 0:01:44.1]} 30. bxc4 {[%clk 0:00:42.2]} 30... Nh5
{[%clk 0:01:18.4]} 31. Nxh5 {[%clk 0:00:40.7]} 31... gxh5 {[%clk 0:01:20]} 32.
Bf5 {[%clk 0:00:38.4]} 32... Qd8 {[%clk 0:01:07.8]} 33. Qd1 {[%clk 0:00:34.6]}
33... Kg7 {[%clk 0:00:59.2]} 34. Rh1 {[%clk 0:00:21.1]} 34... Rh8 {[%clk
0:00:56.2]} 35. Rxh5 {[%clk 0:00:21]} 35... Rxh5 {[%clk 0:00:48.5]} 36. Qxh5
{[%clk 0:00:22.9]} 36... Rh8 {[%clk 0:00:49.7]} 37. Qe2 {[%clk 0:00:23.3]} 37...
Bd4 {[%clk 0:00:42.2]} 38. c5 {[%clk 0:00:22]} 38... Rh4 {[%clk 0:00:36.4]} 39.
Qd2 {[%clk 0:00:17.9]} 39... dxc5 {[%clk 0:00:30.6]} 40. Be4 {[%clk 0:00:11.2]}
40... Qd7 {[%clk 0:00:31.2]} 41. Bxe5+ {[%clk 0:00:09.7]} 41... Bxe5 {[%clk
0:00:31.8]} 42. Qd3 {[%clk 0:00:10.2]} 42... Qg4+ {[%clk 0:00:31.2]} 43. Kf2
{[%clk 0:00:10.4]} 43... Qxe4 {[%clk 0:00:30.3]} 44. Qxe4 {[%clk 0:00:11]} 44...
Rxe4 {[%clk 0:00:31]} 0-1